[Event "*** SCC Grand Prix: Titled Tuesday Blitz"]
[Site "Chess.com"]
[Date "2020.07.07"]
[Round "1"]
[White "crazychessbr"]
[Black "Azatic"]
[Result "0-1"]
[WhiteElo "2079"]
[BlackElo "2501"]
[TimeControl "180+1"]
[EndTime "10:07:40 PDT"]
[Termination "Azatic won by resignation"]

1. e4 {[%clk 0:03:00.9]} 1... c5 {[%clk 0:02:59]} 2. d3 {[%clk 0:02:59.6]} 2...
Nc6 {[%clk 0:02:57.3]} 3. g3 {[%clk 0:02:54.9]} 3... g6 {[%clk 0:02:55.7]} 4.
Bg2 {[%clk 0:02:52.9]} 4... Bg7 {[%clk 0:02:55.1]} 5. f4 {[%clk 0:02:51.4]} 5...
d6 {[%clk 0:02:49.6]} 6. Nf3 {[%clk 0:02:50.7]} 6... e6 {[%clk 0:02:49.1]} 7.
O-O {[%clk 0:02:49.8]} 7... Nge7 {[%clk 0:02:49.2]} 8. c3 {[%clk 0:02:48.8]}
8... Qb6 {[%clk 0:02:31.8]} 9. Na3 {[%clk 0:02:39.4]} 9... O-O {[%clk
0:02:27.1]} 10. h3 {[%clk 0:02:15.6]} 10... a6 {[%clk 0:02:15.7]} 11. Nc2 {[%clk
0:01:56.7]} 11... Qc7 {[%clk 0:02:13.8]} 12. Be3 {[%clk 0:01:41.2]} 12... b5
{[%clk 0:02:11.1]} 13. d4 {[%clk 0:01:39.5]} 13... cxd4 {[%clk 0:02:08]} 14.
cxd4 {[%clk 0:01:37.4]} 14... Bb7 {[%clk 0:02:03.5]} 15. Bf2 {[%clk 0:01:33.9]}
15... Rac8 {[%clk 0:02:01.4]} 16. Rc1 {[%clk 0:01:31.6]} 16... Na5 {[%clk
0:01:53.3]} 17. Qe2 {[%clk 0:01:16]} 17... Qc4 {[%clk 0:01:43.4]} 18. Qxc4
{[%clk 0:01:05.6]} 18... Nxc4 {[%clk 0:01:06.7]} 19. b3 {[%clk 0:01:04.7]} 19...
Nb2 {[%clk 0:01:02.7]} 20. Nfe1 {[%clk 0:00:51.5]} 20... Rc3 {[%clk 0:00:49.5]}
21. Be3 {[%clk 0:00:23.3]} 21... Nd3 {[%clk 0:00:20.5]} 22. Nxd3 {[%clk
0:00:21.5]} 22... Rxd3 {[%clk 0:00:21.4]} 23. Rfd1 {[%clk 0:00:19.1]} 23...
Rxd1+ {[%clk 0:00:20.6]} 24. Rxd1 {[%clk 0:00:19]} 24... Rc8 {[%clk 0:00:21.1]}
25. Nb4 {[%clk 0:00:14.5]} 25... a5 {[%clk 0:00:19.7]} 26. Nd3 {[%clk
0:00:14.1]} 26... Rc3 {[%clk 0:00:17.5]} 27. e5 {[%clk 0:00:10.7]} 27... Bxg2
{[%clk 0:00:15.8]} 28. Kxg2 {[%clk 0:00:10.7]} 28... dxe5 {[%clk 0:00:12.8]} 29.
dxe5 {[%clk 0:00:10.7]} 29... Nd5 {[%clk 0:00:13]} 30. Bd4 {[%clk 0:00:10]}
30... Rc2+ {[%clk 0:00:13.2]} 31. Kf3 {[%clk 0:00:09.5]} 31... h5 {[%clk
0:00:09.3]} 32. a3 {[%clk 0:00:06.3]} 32... Ra2 {[%clk 0:00:08.7]} 33. Bc5
{[%clk 0:00:05.6]} 33... Bf8 {[%clk 0:00:08.1]} 34. b4 {[%clk 0:00:05.5]} 34...
axb4 {[%clk 0:00:07.5]} 35. Nxb4 {[%clk 0:00:05.3]} 35... Rxa3+ {[%clk
0:00:07.3]} 36. Kg2 {[%clk 0:00:04]} 36... Bxc5 {[%clk 0:00:07.3]} 37. Nxd5
{[%clk 0:00:04.5]} 37... Ra2+ {[%clk 0:00:07.8]} 38. Kh1 {[%clk 0:00:04.4]}
38... exd5 {[%clk 0:00:08.2]} 39. Rxd5 {[%clk 0:00:04.6]} 39... Rc2 {[%clk
0:00:08.3]} 40. g4 {[%clk 0:00:03]} 40... hxg4 {[%clk 0:00:08.2]} 41. f5 {[%clk
0:00:03.5]} 41... gxf5 {[%clk 0:00:08.1]} 42. hxg4 {[%clk 0:00:03.5]} 42... fxg4
{[%clk 0:00:09]} 0-1

[Event "*** SCC Grand Prix: Titled Tuesday Blitz"]
[Site "Chess.com"]
[Date "2020.07.07"]
[Round "1"]
[White "Belka1989"]
[Black "aliba25"]
[Result "0-1"]
[WhiteElo "2281"]
[BlackElo "2611"]
[TimeControl "180+1"]
[EndTime "10:07:41 PDT"]
[Termination "aliba25 won by checkmate"]

1. d4 {[%clk 0:02:50.6]} 1... Nf6 {[%clk 0:02:59.5]} 2. Nf3 {[%clk 0:02:51.1]}
2... d5 {[%clk 0:02:56.6]} 3. Bf4 {[%clk 0:02:51.7]} 3... Bf5 {[%clk 0:02:56.2]}
4. e3 {[%clk 0:02:52]} 4... e6 {[%clk 0:02:56]} 5. c4 {[%clk 0:02:52.6]} 5...
Bd6 {[%clk 0:02:54.2]} 6. Bg3 {[%clk 0:02:44]} 6... Bxg3 {[%clk 0:02:50]} 7.
hxg3 {[%clk 0:02:44.9]} 7... c6 {[%clk 0:02:47.3]} 8. Qb3 {[%clk 0:02:35.9]}
8... Qb6 {[%clk 0:02:34.2]} 9. c5 {[%clk 0:02:35.8]} 9... Qc7 {[%clk 0:02:34.3]}
10. Nc3 {[%clk 0:02:13.5]} 10... O-O {[%clk 0:02:32.4]} 11. Qd1 {[%clk
0:02:02.3]} 11... Nbd7 {[%clk 0:02:28.8]} 12. Bd3 {[%clk 0:02:02.2]} 12... Bxd3
{[%clk 0:02:23.2]} 13. Qxd3 {[%clk 0:02:03.1]} 13... e5 {[%clk 0:02:24]} 14. Qc2
{[%clk 0:01:36.5]} 14... Rfe8 {[%clk 0:02:21.7]} 15. O-O {[%clk 0:01:32.9]}
15... exd4 {[%clk 0:02:18.2]} 16. exd4 {[%clk 0:01:29]} 16... Nf8 {[%clk
0:02:17.9]} 17. Rfe1 {[%clk 0:01:22]} 17... Re6 {[%clk 0:02:15.3]} 18. Rxe6
{[%clk 0:01:09.5]} 18... Nxe6 {[%clk 0:02:16.2]} 19. b4 {[%clk 0:01:06.9]} 19...
b6 {[%clk 0:02:12.4]} 20. cxb6 {[%clk 0:00:55.9]} 20... axb6 {[%clk 0:02:03.3]}
21. Rc1 {[%clk 0:00:53.1]} 21... Qa7 {[%clk 0:01:54.1]} 22. a4 {[%clk
0:00:39.9]} 22... g6 {[%clk 0:01:52.3]} 23. Ne2 {[%clk 0:00:34.8]} 23... Qxa4
{[%clk 0:01:48.4]} 24. Qxc6 {[%clk 0:00:34.8]} 24... Qxc6 {[%clk 0:01:30.7]} 25.
Rxc6 {[%clk 0:00:35.7]} 25... Ra1+ {[%clk 0:01:31.1]} 26. Rc1 {[%clk 0:00:23.2]}
26... Ra2 {[%clk 0:01:26.3]} 27. Nc3 {[%clk 0:00:18.6]} 27... Rb2 {[%clk
0:01:26.3]} 28. Rb1 {[%clk 0:00:13.5]} 28... Rc2 {[%clk 0:01:25.9]} 29. Na4
{[%clk 0:00:13.6]} 29... b5 {[%clk 0:01:15.6]} 30. Nc5 {[%clk 0:00:14.1]} 30...
Rc4 {[%clk 0:01:12.4]} 31. Nxe6 {[%clk 0:00:11.2]} 31... fxe6 {[%clk 0:01:13.3]}
32. Kf1 {[%clk 0:00:11.4]} 32... Ne4 {[%clk 0:01:12.9]} 33. Rb2 {[%clk
0:00:06.9]} 33... Kg7 {[%clk 0:01:06.7]} 34. Ke2 {[%clk 0:00:07.4]} 34... Kf6
{[%clk 0:01:07]} 35. g4 {[%clk 0:00:07.1]} 35... h6 {[%clk 0:01:06.6]} 36. Nd2
{[%clk 0:00:02.3]} 36... Rxd4 {[%clk 0:01:05.8]} 37. Nxe4+ {[%clk 0:00:01.9]}
37... Rxe4+ {[%clk 0:01:06.7]} 38. Kd3 {[%clk 0:00:02.4]} 38... Rxg4 {[%clk
0:01:06.5]} 39. f3 {[%clk 0:00:02.9]} 39... Rc4 {[%clk 0:01:05.8]} 40. Rb1
{[%clk 0:00:01.6]} 40... h5 {[%clk 0:01:03.2]} 41. g3 {[%clk 0:00:02.3]} 41...
e5 {[%clk 0:01:02.4]} 42. Kd2 {[%clk 0:00:03]} 42... Kf5 {[%clk 0:01:01.9]} 43.
Kd3 {[%clk 0:00:03.6]} 43... e4+ {[%clk 0:01:00.7]} 44. fxe4+ {[%clk 0:00:04.4]}
44... dxe4+ {[%clk 0:01:01.6]} 45. Kd2 {[%clk 0:00:05.2]} 45... Kg4 {[%clk
0:01:01.9]} 46. Rf1 {[%clk 0:00:05.9]} 46... Rxb4 {[%clk 0:01:01.5]} 47. Rf4+
{[%clk 0:00:06.5]} 47... Kxg3 {[%clk 0:01:01.3]} 48. Rf6 {[%clk 0:00:07.4]}
48... g5 {[%clk 0:01:01.6]} 49. Ke3 {[%clk 0:00:07.4]} 49... g4 {[%clk
0:01:00.9]} 50. Rf8 {[%clk 0:00:05.5]} 50... h4 {[%clk 0:01:00.5]} 51. Rf1
{[%clk 0:00:05.4]} 51... h3 {[%clk 0:01:00.5]} 52. Re1 {[%clk 0:00:02.2]} 52...
h2 {[%clk 0:01:00]} 53. Rd1 {[%clk 0:00:02.4]} 53... Kh3 {[%clk 0:00:59.1]} 54.
Rh1 {[%clk 0:00:02.1]} 54... g3 {[%clk 0:00:58.9]} 55. Re1 {[%clk 0:00:01.4]}
55... g2 {[%clk 0:00:57.3]} 56. Ke2 {[%clk 0:00:02]} 56... g1=Q {[%clk
0:00:55.3]} 57. Rxg1 {[%clk 0:00:02.7]} 57... hxg1=Q {[%clk 0:00:55]} 58. Kd2
{[%clk 0:00:03.2]} 58... Qd4+ {[%clk 0:00:54.3]} 59. Ke2 {[%clk 0:00:04]} 59...
Rb2+ {[%clk 0:00:54.6]} 60. Ke1 {[%clk 0:00:04.7]} 60... Qf2+ {[%clk 0:00:55]}
61. Kd1 {[%clk 0:00:05.2]} 61... Rb1# {[%clk 0:00:55.3]} 0-1

[Event "*** SCC Grand Prix: Titled Tuesday Blitz"]
[Site "Chess.com"]
[Date "2020.07.07"]
[Round "1"]
[White "hanzo_hasashi1"]
[Black "albano87"]
[Result "1-0"]
[WhiteElo "2829"]
[BlackElo "2428"]
[TimeControl "180+1"]
[EndTime "10:07:43 PDT"]
[Termination "hanzo_hasashi1 won on time"]

1. c4 {[%clk 0:03:00.9]} 1... e6 {[%clk 0:02:50.7]} 2. d4 {[%clk 0:02:58.5]}
2... d5 {[%clk 0:02:50.9]} 3. Nc3 {[%clk 0:02:57.7]} 3... Nf6 {[%clk 0:02:51.6]}
4. cxd5 {[%clk 0:02:57.3]} 4... exd5 {[%clk 0:02:51.7]} 5. Bg5 {[%clk
0:02:57.7]} 5... Nbd7 {[%clk 0:02:49.3]} 6. e3 {[%clk 0:02:56.3]} 6... Be7
{[%clk 0:02:48.6]} 7. Bd3 {[%clk 0:02:55.8]} 7... O-O {[%clk 0:02:38.5]} 8. Nge2
{[%clk 0:02:55.4]} 8... c6 {[%clk 0:02:33.3]} 9. O-O {[%clk 0:02:52.9]} 9... Re8
{[%clk 0:02:32.8]} 10. f3 {[%clk 0:02:42.3]} 10... Nf8 {[%clk 0:02:30.8]} 11.
Bh4 {[%clk 0:02:37.5]} 11... Ng6 {[%clk 0:02:26.7]} 12. Bf2 {[%clk 0:02:36.9]}
12... c5 {[%clk 0:02:10.4]} 13. Qd2 {[%clk 0:02:27.2]} 13... a6 {[%clk
0:02:09.2]} 14. a4 {[%clk 0:02:18.1]} 14... c4 {[%clk 0:02:05.7]} 15. Bc2 {[%clk
0:02:15.5]} 15... Rb8 {[%clk 0:02:06.3]} 16. Bg3 {[%clk 0:02:07.1]} 16... Ra8
{[%clk 0:02:04.4]} 17. Kh1 {[%clk 0:02:03.8]} 17... Bb4 {[%clk 0:02:03.9]} 18.
Qc1 {[%clk 0:01:58.9]} 18... h5 {[%clk 0:01:48.2]} 19. Bf2 {[%clk 0:01:47]}
19... h4 {[%clk 0:01:46]} 20. Bxg6 {[%clk 0:01:45]} 20... fxg6 {[%clk
0:01:46.3]} 21. Bxh4 {[%clk 0:01:45.3]} 21... Bf5 {[%clk 0:01:42.4]} 22. e4
{[%clk 0:01:36.6]} 22... dxe4 {[%clk 0:01:33]} 23. fxe4 {[%clk 0:01:34]} 23...
Bxe4 {[%clk 0:01:12.5]} 24. Nxe4 {[%clk 0:01:23.5]} 24... Rxe4 {[%clk
0:01:08.7]} 25. Bxf6 {[%clk 0:01:21.2]} 25... gxf6 {[%clk 0:01:09.6]} 26. Qxc4+
{[%clk 0:01:21]} 26... Kg7 {[%clk 0:01:08]} 27. Qxb4 {[%clk 0:01:13]} 27... Rxe2
{[%clk 0:01:06.8]} 28. Rae1 {[%clk 0:01:08.4]} 28... Rxe1 {[%clk 0:01:02.5]} 29.
Rxe1 {[%clk 0:01:07.5]} 29... Qd5 {[%clk 0:00:57]} 30. Re7+ {[%clk 0:00:58.1]}
30... Kh6 {[%clk 0:00:55.3]} 31. Qd2+ {[%clk 0:00:48.3]} 31... Qg5 {[%clk
0:00:14.9]} 32. Qxg5+ {[%clk 0:00:35.1]} 32... Kxg5 {[%clk 0:00:14.4]} 33. Rxb7
{[%clk 0:00:35]} 33... Rc8 {[%clk 0:00:14.9]} 34. h3 {[%clk 0:00:33.5]} 34...
Rc4 {[%clk 0:00:14]} 35. b4 {[%clk 0:00:28.8]} 35... Rxd4 {[%clk 0:00:14.2]} 36.
Rb6 {[%clk 0:00:28.7]} 36... a5 {[%clk 0:00:08.3]} 37. bxa5 {[%clk 0:00:25.9]}
1-0

[Event "*** SCC Grand Prix: Titled Tuesday Blitz"]
[Site "Chess.com"]
[Date "2020.07.07"]
[Round "1"]
[White "monalize"]
[Black "stefan_95"]
[Result "0-1"]
[WhiteElo "2246"]
[BlackElo "2583"]
[TimeControl "180+1"]
[EndTime "10:07:44 PDT"]
[Termination "stefan_95 won by resignation"]

1. e4 {[%clk 0:02:58.4]} 1... c5 {[%clk 0:02:58.4]} 2. Nf3 {[%clk 0:02:56.7]}
2... d6 {[%clk 0:02:58.3]} 3. d4 {[%clk 0:02:56.9]} 3... cxd4 {[%clk 0:02:59.2]}
4. Qxd4 {[%clk 0:02:55.7]} 4... a6 {[%clk 0:02:57.6]} 5. Be2 {[%clk 0:02:54.4]}
5... Nc6 {[%clk 0:02:57.8]} 6. Qe3 {[%clk 0:02:54.3]} 6... Nf6 {[%clk 0:02:58]}
7. h3 {[%clk 0:02:53.7]} 7... g6 {[%clk 0:02:58.5]} 8. O-O {[%clk 0:02:53.5]}
8... Bg7 {[%clk 0:02:58.9]} 9. Rd1 {[%clk 0:02:53.3]} 9... O-O {[%clk
0:02:59.3]} 10. c4 {[%clk 0:02:52.5]} 10... Nd7 {[%clk 0:02:58.8]} 11. Nc3
{[%clk 0:02:51.1]} 11... Nc5 {[%clk 0:02:59]} 12. Rb1 {[%clk 0:02:44.4]} 12...
a5 {[%clk 0:02:58.9]} 13. Nd5 {[%clk 0:02:39.3]} 13... f5 {[%clk 0:02:57.7]} 14.
exf5 {[%clk 0:02:07.2]} 14... Bxf5 {[%clk 0:02:58.6]} 15. Ra1 {[%clk 0:02:06.8]}
15... e5 {[%clk 0:02:47.7]} 16. Bf1 {[%clk 0:01:42.6]} 16... e4 {[%clk
0:02:44.8]} 17. Ne1 {[%clk 0:01:36.5]} 17... Qh4 {[%clk 0:02:30.4]} 18. Nc3
{[%clk 0:01:18.8]} 18... Be5 {[%clk 0:02:07.1]} 19. Qg5 {[%clk 0:01:06.9]} 19...
Qxg5 {[%clk 0:01:44]} 20. Bxg5 {[%clk 0:01:07.8]} 20... Kg7 {[%clk 0:01:44.6]}
21. Rac1 {[%clk 0:01:05.1]} 21... Be6 {[%clk 0:01:35.8]} 22. b3 {[%clk
0:01:02.4]} 22... Bd4 {[%clk 0:01:23]} 23. Be3 {[%clk 0:01:00.9]} 23... Bxe3
{[%clk 0:01:23]} 24. fxe3 {[%clk 0:01:00.5]} 24... Rad8 {[%clk 0:01:22.2]} 25.
Nb5 {[%clk 0:00:59.5]} 25... Nb4 {[%clk 0:01:07.2]} 26. Rxd6 {[%clk 0:00:49.8]}
26... Rxd6 {[%clk 0:01:03.5]} 27. Nxd6 {[%clk 0:00:49.7]} 27... Nxa2 {[%clk
0:01:04.4]} 28. Ra1 {[%clk 0:00:45.9]} 28... Nc3 {[%clk 0:00:57.8]} 29. Rxa5
{[%clk 0:00:44.7]} 29... b6 {[%clk 0:00:57.1]} 30. Ra7+ {[%clk 0:00:43.6]} 30...
Kg8 {[%clk 0:00:57.2]} 31. b4 {[%clk 0:00:41.8]} 31... Nb3 {[%clk 0:00:56.6]}
32. Nc2 {[%clk 0:00:38.7]} 32... Nd2 {[%clk 0:00:56.4]} 33. Nd4 {[%clk
0:00:37.6]} 33... Rxf1+ {[%clk 0:00:53.8]} 34. Kh2 {[%clk 0:00:37.5]} 34... Bxc4
{[%clk 0:00:53.2]} 35. Nxc4 {[%clk 0:00:36.5]} 35... Nxc4 {[%clk 0:00:53.4]} 36.
Rc7 {[%clk 0:00:35.7]} 36... b5 {[%clk 0:00:53.2]} 37. Nxb5 {[%clk 0:00:34.8]}
37... Nxb5 {[%clk 0:00:54.1]} 38. Rxc4 {[%clk 0:00:34.5]} 38... Nd6 {[%clk
0:00:47.1]} 39. Rd4 {[%clk 0:00:34.5]} 39... Rf6 {[%clk 0:00:46.8]} 40. b5
{[%clk 0:00:31.7]} 40... Nxb5 {[%clk 0:00:45.7]} 41. Rxe4 {[%clk 0:00:31.6]}
41... Nd6 {[%clk 0:00:42.2]} 42. Re5 {[%clk 0:00:31.4]} 42... Kf7 {[%clk
0:00:41]} 43. h4 {[%clk 0:00:30.7]} 43... Re6 {[%clk 0:00:41.3]} 44. Rd5 {[%clk
0:00:30.2]} 44... Nf5 {[%clk 0:00:40.4]} 45. h5 {[%clk 0:00:27.2]} 45... Nxe3
{[%clk 0:00:36.5]} 46. hxg6+ {[%clk 0:00:26.8]} 46... hxg6 {[%clk 0:00:32.7]}
47. Ra5 {[%clk 0:00:25.7]} 47... Nf5 {[%clk 0:00:31.7]} 48. Rb5 {[%clk
0:00:22.9]} 48... Re2 {[%clk 0:00:30]} 49. Kh3 {[%clk 0:00:19.5]} 49... Kf6
{[%clk 0:00:27.2]} 50. Rb6+ {[%clk 0:00:18.8]} 50... Kg5 {[%clk 0:00:27]} 51.
Rb5 {[%clk 0:00:19]} 51... Re3+ {[%clk 0:00:26.1]} 52. Kh2 {[%clk 0:00:18.6]}
52... Rd3 {[%clk 0:00:24]} 53. Ra5 {[%clk 0:00:18.1]} 53... Kg4 {[%clk
0:00:24.1]} 54. Ra4+ {[%clk 0:00:17.7]} 54... Rd4 {[%clk 0:00:24.3]} 55. Ra6
{[%clk 0:00:17.3]} 55... g5 {[%clk 0:00:24.5]} 56. Ra4 {[%clk 0:00:17.1]} 56...
Rxa4 {[%clk 0:00:23.3]} 0-1

[Event "*** SCC Grand Prix: Titled Tuesday Blitz"]
[Site "Chess.com"]
[Date "2020.07.07"]
[Round "1"]
[White "Dr-Bassem"]
[Black "londonkid"]
[Result "1-0"]
[WhiteElo "2801"]
[BlackElo "2417"]
[TimeControl "180+1"]
[EndTime "10:07:49 PDT"]
[Termination "Dr-Bassem won by checkmate"]

1. e4 {[%clk 0:03:00.2]} 1... e6 {[%clk 0:02:59.9]} 2. d3 {[%clk 0:02:59.9]}
2... d5 {[%clk 0:03:00.3]} 3. Nd2 {[%clk 0:03:00.4]} 3... Nf6 {[%clk 0:03:00.9]}
4. Ngf3 {[%clk 0:03:00.9]} 4... c5 {[%clk 0:03:01]} 5. g3 {[%clk 0:03:00.8]}
5... Nc6 {[%clk 0:03:01.3]} 6. Bg2 {[%clk 0:03:01.3]} 6... Be7 {[%clk
0:03:01.8]} 7. O-O {[%clk 0:03:01.8]} 7... Qc7 {[%clk 0:03:01.8]} 8. Re1 {[%clk
0:03:02.1]} 8... b6 {[%clk 0:03:01.7]} 9. Qe2 {[%clk 0:02:57.7]} 9... Bb7 {[%clk
0:03:01.3]} 10. a3 {[%clk 0:02:57.1]} 10... a5 {[%clk 0:03:00.6]} 11. a4 {[%clk
0:02:51.9]} 11... h6 {[%clk 0:02:57.3]} 12. c3 {[%clk 0:02:50.7]} 12... O-O
{[%clk 0:02:51.7]} 13. e5 {[%clk 0:02:44.5]} 13... Nd7 {[%clk 0:02:51.7]} 14.
Nb1 {[%clk 0:02:39.3]} 14... Rfd8 {[%clk 0:02:47.4]} 15. Na3 {[%clk 0:02:37.8]}
15... Nf8 {[%clk 0:02:42]} 16. Nb5 {[%clk 0:02:28.5]} 16... Qd7 {[%clk
0:02:41.8]} 17. h4 {[%clk 0:02:29]} 17... Na7 {[%clk 0:02:37.5]} 18. Nxa7 {[%clk
0:02:17.6]} 18... Rxa7 {[%clk 0:02:38.4]} 19. Nh2 {[%clk 0:02:08.5]} 19... d4
{[%clk 0:02:37.5]} 20. c4 {[%clk 0:02:04.9]} 20... Bxg2 {[%clk 0:02:37]} 21.
Kxg2 {[%clk 0:02:05.8]} 21... Qc6+ {[%clk 0:02:32.9]} 22. Kh3 {[%clk 0:01:57.6]}
22... Ng6 {[%clk 0:02:26.1]} 23. h5 {[%clk 0:01:42.1]} 23... Nf8 {[%clk
0:02:25.1]} 24. Qg4 {[%clk 0:01:30.6]} 24... Kh8 {[%clk 0:02:19.9]} 25. Qe4
{[%clk 0:01:24.7]} 25... Qxe4 {[%clk 0:02:13.6]} 26. Rxe4 {[%clk 0:01:25.6]}
26... Nd7 {[%clk 0:02:08.9]} 27. g4 {[%clk 0:01:13.2]} 27... Rf8 {[%clk
0:01:56.6]} 28. f4 {[%clk 0:01:02.8]} 28... Raa8 {[%clk 0:01:44.5]} 29. Bd2
{[%clk 0:00:53.5]} 29... Rae8 {[%clk 0:01:32.9]} 30. Rae1 {[%clk 0:00:46.7]}
30... Nb8 {[%clk 0:01:16.6]} 31. f5 {[%clk 0:00:35.9]} 31... Bg5 {[%clk
0:00:51.1]} 32. Bxg5 {[%clk 0:00:31.6]} 32... hxg5 {[%clk 0:00:52]} 33. Nf3
{[%clk 0:00:31.8]} 33... Nc6 {[%clk 0:00:44.5]} 34. Nxg5 {[%clk 0:00:28.9]}
34... Nb4 {[%clk 0:00:44.5]} 35. Rd1 {[%clk 0:00:28.3]} 35... Nc2 {[%clk
0:00:44]} 36. Rf1 {[%clk 0:00:21.1]} 36... Ne3 {[%clk 0:00:43.6]} 37. Rf3 {[%clk
0:00:20.7]} 37... Nd1 {[%clk 0:00:37.6]} 38. b3 {[%clk 0:00:17.2]} 38... Nc3
{[%clk 0:00:36.3]} 39. Re1 {[%clk 0:00:17.1]} 39... exf5 {[%clk 0:00:34]} 40.
gxf5 {[%clk 0:00:13.2]} 40... f6 {[%clk 0:00:32.5]} 41. Ne6 {[%clk 0:00:13.1]}
41... Rf7 {[%clk 0:00:32.9]} 42. Kg4 {[%clk 0:00:10.1]} 42... fxe5 {[%clk
0:00:32]} 43. Rxe5 {[%clk 0:00:10.7]} 43... Nd1 {[%clk 0:00:31]} 44. Ng5 {[%clk
0:00:07.8]} 44... Rfe7 {[%clk 0:00:29.3]} 45. Rxe7 {[%clk 0:00:07.4]} 45... Rxe7
{[%clk 0:00:30.2]} 46. f6 {[%clk 0:00:08]} 46... gxf6 {[%clk 0:00:29.2]} 47.
Rxf6 {[%clk 0:00:08.9]} 47... Ne3+ {[%clk 0:00:29.8]} 48. Kf3 {[%clk 0:00:09.1]}
48... Kg7 {[%clk 0:00:29.2]} 49. Rg6+ {[%clk 0:00:08.8]} 49... Kh8 {[%clk
0:00:25.9]} 50. Rxb6 {[%clk 0:00:07.8]} 50... Nc2 {[%clk 0:00:21.5]} 51. h6
{[%clk 0:00:07]} 51... Re3+ {[%clk 0:00:21.3]} 52. Kg4 {[%clk 0:00:07]} 52...
Rxd3 {[%clk 0:00:20.3]} 53. Rb8# {[%clk 0:00:07.2]} 1-0

[Event "*** SCC Grand Prix: Titled Tuesday Blitz"]
[Site "Chess.com"]
[Date "2020.07.07"]
[Round "1"]
[White "Omk124"]
[Black "bascheyaro"]
[Result "0-1"]
[WhiteElo "2373"]
[BlackElo "2691"]
[TimeControl "180+1"]
[EndTime "10:07:51 PDT"]
[Termination "bascheyaro won by checkmate"]

1. e4 {[%clk 0:02:56.5]} 1... e6 {[%clk 0:02:59.9]} 2. d4 {[%clk 0:02:53.4]}
2... d5 {[%clk 0:03:00.8]} 3. Nd2 {[%clk 0:02:53.6]} 3... c5 {[%clk 0:03:00.6]}
4. exd5 {[%clk 0:02:53.4]} 4... exd5 {[%clk 0:03:01.5]} 5. Ngf3 {[%clk
0:02:53.4]} 5... Nc6 {[%clk 0:03:02.1]} 6. Bb5 {[%clk 0:02:53.4]} 6... c4 {[%clk
0:03:02.6]} 7. O-O {[%clk 0:02:52]} 7... Bd6 {[%clk 0:03:03]} 8. b3 {[%clk
0:02:51.6]} 8... cxb3 {[%clk 0:03:03.9]} 9. axb3 {[%clk 0:02:49.9]} 9... Ne7
{[%clk 0:03:04.8]} 10. Bb2 {[%clk 0:02:50]} 10... O-O {[%clk 0:03:04.6]} 11. c4
{[%clk 0:02:50.3]} 11... a6 {[%clk 0:03:04]} 12. Bxc6 {[%clk 0:02:48.6]} 12...
Nxc6 {[%clk 0:03:04.9]} 13. cxd5 {[%clk 0:02:47.7]} 13... Nb4 {[%clk 0:03:04.9]}
14. Nc4 {[%clk 0:02:48.2]} 14... Bg4 {[%clk 0:02:56.1]} 15. h3 {[%clk
0:02:46.1]} 15... Bh5 {[%clk 0:02:54.9]} 16. Ba3 {[%clk 0:02:43.3]} 16... a5
{[%clk 0:02:54.1]} 17. Re1 {[%clk 0:02:31.6]} 17... b5 {[%clk 0:02:51.6]} 18.
Nxd6 {[%clk 0:02:28]} 18... Qxd6 {[%clk 0:02:52.5]} 19. Re5 {[%clk 0:02:28.2]}
19... Bg6 {[%clk 0:02:52.4]} 20. Qd2 {[%clk 0:02:26.5]} 20... f6 {[%clk
0:02:48.3]} 21. Re3 {[%clk 0:02:23.4]} 21... Bf7 {[%clk 0:02:42.2]} 22. Rc3
{[%clk 0:02:18.4]} 22... Bxd5 {[%clk 0:02:40.7]} 23. Rac1 {[%clk 0:02:18.5]}
23... Rae8 {[%clk 0:02:32.1]} 24. Qd1 {[%clk 0:02:08]} 24... Qf4 {[%clk
0:02:27.2]} 25. Bxb4 {[%clk 0:02:05.9]} 25... axb4 {[%clk 0:02:26.9]} 26. Rc5
{[%clk 0:02:06.8]} 26... Bxf3 {[%clk 0:02:27.1]} 27. Qxf3 {[%clk 0:02:07.3]}
27... Qxd4 {[%clk 0:02:25.7]} 28. Rxb5 {[%clk 0:02:07]} 28... Re5 {[%clk
0:02:02.4]} 29. Rxe5 {[%clk 0:02:04.9]} 29... fxe5 {[%clk 0:02:02.1]} 30. Qe2
{[%clk 0:02:02.1]} 30... Kh8 {[%clk 0:01:55.2]} 31. Rc4 {[%clk 0:02:00.6]} 31...
Qa1+ {[%clk 0:01:48.4]} 32. Kh2 {[%clk 0:02:00]} 32... Qa5 {[%clk 0:01:48.5]}
33. Qf3 {[%clk 0:01:56.4]} 33... Qd8 {[%clk 0:01:44]} 34. Qe3 {[%clk 0:01:54.4]}
34... Qd6 {[%clk 0:01:41.5]} 35. Re4 {[%clk 0:01:53.6]} 35... h6 {[%clk
0:01:31.2]} 36. g3 {[%clk 0:01:46.7]} 36... Rf5 {[%clk 0:01:22.2]} 37. Qe1
{[%clk 0:01:35.4]} 37... Qc5 {[%clk 0:01:17.1]} 38. Kg2 {[%clk 0:01:30.9]} 38...
Kg8 {[%clk 0:00:46.2]} 39. Rxb4 {[%clk 0:01:28.9]} 39... Rxf2+ {[%clk
0:00:45.7]} 40. Qxf2 {[%clk 0:01:28.7]} 40... Qxb4 {[%clk 0:00:46.2]} 41. Qe3
{[%clk 0:01:29]} 41... Qb7+ {[%clk 0:00:44]} 42. Kh2 {[%clk 0:01:28.3]} 42...
Qd5 {[%clk 0:00:43.5]} 43. h4 {[%clk 0:01:26.6]} 43... e4 {[%clk 0:00:42.5]} 44.
Kg2 {[%clk 0:01:23.8]} 44... Kf7 {[%clk 0:00:41.8]} 45. Kf2 {[%clk 0:01:23.4]}
45... g5 {[%clk 0:00:40.9]} 46. hxg5 {[%clk 0:01:22.5]} 46... hxg5 {[%clk
0:00:41]} 47. Qa7+ {[%clk 0:01:22.1]} 47... Kg6 {[%clk 0:00:40.9]} 48. Qa6+
{[%clk 0:01:21.7]} 48... Kh5 {[%clk 0:00:35.4]} 49. Qe2+ {[%clk 0:01:20.6]}
49... g4 {[%clk 0:00:35.5]} 50. Ke3 {[%clk 0:01:16.9]} 50... Qxb3+ {[%clk
0:00:33.4]} 51. Kxe4 {[%clk 0:01:16]} 51... Qxg3 {[%clk 0:00:33.5]} 52. Qb5+
{[%clk 0:01:12.1]} 52... Kh4 {[%clk 0:00:33.2]} 53. Qf5 {[%clk 0:01:10]} 53...
Qg2+ {[%clk 0:00:32.3]} 54. Ke3 {[%clk 0:01:09.4]} 54... Qg1+ {[%clk 0:00:31.5]}
55. Ke2 {[%clk 0:01:08.2]} 55... Qd4 {[%clk 0:00:24.7]} 56. Kf1 {[%clk
0:01:03.6]} 56... Kg3 {[%clk 0:00:22.4]} 57. Qc2 {[%clk 0:00:56.7]} 57... Qe3
{[%clk 0:00:14.4]} 58. Qg2+ {[%clk 0:00:55.2]} 58... Kh4 {[%clk 0:00:14.7]} 59.
Qf2+ {[%clk 0:00:54.9]} 59... Qxf2+ {[%clk 0:00:14.4]} 60. Kxf2 {[%clk
0:00:55.8]} 60... Kh3 {[%clk 0:00:15]} 61. Kg1 {[%clk 0:00:54.9]} 61... Kg3
{[%clk 0:00:15.3]} 62. Kh1 {[%clk 0:00:55.8]} 62... Kf2 {[%clk 0:00:15.6]} 63.
Kh2 {[%clk 0:00:56.7]} 63... g3+ {[%clk 0:00:16.2]} 64. Kh1 {[%clk 0:00:57.6]}
64... g2+ {[%clk 0:00:17.1]} 65. Kh2 {[%clk 0:00:57.9]} 65... g1=Q+ {[%clk
0:00:18]} 66. Kh3 {[%clk 0:00:58.8]} 66... Qg3# {[%clk 0:00:18.1]} 0-1